Cogmind - Beta 14 @@@ ROGUE MODE // 2025.03.31 @ 13:47:27 Player: golanco Result: Destroyed by G-47 Trooper with Particle Gun Performance ------------- Evolutions (1) 500 Regions Visited (6) 1200 Robots Destroyed (76) 380 Value Destroyed (1422) 1422 Prototype IDs (29) 580 Alien Tech Used (0) 0 Bonus (336) 336 TOTAL SCORE: 4418 Bonus ------- High Alert Combat Kills 36 Aligned with FarCom 300 Cogmind --------- Core Integrity 0/400 Matter 32/300 Energy 265/265 System Corruption 9% Temperature Cool (35) Movement Treading (320) Ox2 Location -8/Mines Parts ------- > --- POWER (1) -------- Improved Ion Engine > --- PROPULSION (3) --- Light Treads Light Treads > --- UTILITY (3) ------ Huge Storage Unit Transport Network Coupler > --- WEAPON (2) ------- Autogun Autogun > --- INVENTORY (25) --- Ion Engine Light Ion Engine Light Treads VTOL Module Improved Flight Unit Improved Flight Unit Improved Flight Unit Improved Flight Unit Improved Flight Unit Improved Flight Unit Improved Flight Unit Weight Redist. System Structural Scanner Signal Interpreter ECM Suite Hacking Suite Hacking Suite Trap Reconfigurator Rocket Launcher Rocket Launcher Rocket Launcher Rocket Launcher Maul Peak State ------------ > --- POWER ------------ Improved Ion Engine > --- PROPULSION ------- Light Treads Light Treads Improved Flight Unit > --- UTILITY ---------- Huge Storage Unit Seismic Detector Transport Network Coupler > --- WEAPON ----------- Autogun Autogun > --- INVENTORY -------- Ion Engine Light Treads Light Treads Light Treads Light Treads VTOL Module Improved Flight Unit Improved Flight Unit Improved Flight Unit Improved Flight Unit Huge Storage Unit Weight Redist. System Structural Scanner Signal Interpreter ECM Suite Hacking Suite Hacking Suite EM Shotgun Autogun Autogun Rocket Launcher Rocket Launcher Mini Grenade Launcher Mini Grenade Launcher Maul [Rating: 18] Favorites ----------- Power Ion Engine Engine Ion Engine Propulsion Light Treads Treads Light Treads Flight Unit Improved Flight Unit Utility Huge Storage Unit Device Seismic Detector Storage Huge Storage Unit Processor Transport Network Coupler Weapon Autogun Energy Gun EM Shotgun Ballistic Gun Autogun Launcher Rocket Launcher Build | -11 -10 -10 -9 -9 -9 -8 ------- Run | Yrd Mat Min Mat Min Exi Min Slots Evolved 2 | . . . 2 . . . Power . | . . . . . . . Propulsion 1 | . . . 1 . . . Utility 1 | . . . 1 . . . Weapon . | . . . . . . . Parts Attached 53 | 7 14 . 30 . . 2 Power 4 | 1 1 . 2 . . . Engine 4 | 1 1 . 2 . . . Core . | . . . . . . . Reactor . | . . . . . . . Propulsion 24 | 2 4 . 18 . . . Treads 23 | 2 4 . 17 . . . Leg . | . . . . . . . Wheel . | . . . . . . . Hover . | . . . . . . . Flight 1 | . . . 1 . . . Utility 6 | 2 1 . 3 . . . Device 1 | 1 . . . . . . Storage 3 | 1 1 . 1 . . . Processor 2 | . . . 2 . . . Hackware . | . . . . . . . Protection . | . . . . . . . Artifact . | . . . . . . . Weapon 19 | 2 8 . 7 . . 2 Energy Gun 3 | 1 1 . 1 . . . Energy Cannon . | . . . . . . . Ballistic Gun 13 | 1 5 . 5 . . 2 Ballistic Cannon . | . . . . . . . Launcher 3 | . 2 . 1 . . . Special Weapon . | . . . . . . . Impact Weapon . | . . . . . . . Slashing Weapon . | . . . . . . . Piercing Weapon . | . . . . . . . Special Melee Weapon . | . . . . . . . Unidentified Prototypes 1 | . . . 1 . . . Corrupted Parts 1 | . . . 1 . . . System Corruption 8 | . . . 8 . . . Parts Lost 10 | . 2 . 8 . . . Power 2 | . 1 . 1 . . . Propulsion 3 | . . . 3 . . . Utility 1 | . . . 1 . . . Weapon 4 | . 1 . 3 . . . Highest Loss Streak 6 | . 1 . 6 . . . To Critical Strikes . | . . . . . . . Average Slot Usage (%) 90 | . 99 100 86 87 66 82 Engine 11 | . 13 14 9 11 11 11 Treads 30 | . 28 28 31 33 33 27 Device 9 | . 14 14 7 . . . Storage 12 | . 14 14 11 11 11 11 Processor 3 | . . . 5 11 11 11 Energy Gun 2 | . 6 . . . . . Ballistic Gun 19 | . 20 28 20 21 . 22 Peak Build Rating 18 | 7 12 12 18 16 13 16 Average Rating 12 | 5 10 12 14 15 12 15 On Entrance 10 | . 7 12 12 16 12 13 Naked Turns . | . . . . . . . Heaviest Build 94 | 15 93 92 94 93 87 . Greatest Support 60 | 40 40 40 60 60 60 . Greatest Overweight (x) 27 | 1 2 2 27 1 1 . Average Overweight (x) 1 | . 1 2 1 1 1 . Largest Inventory Capacity 25 | 8 25 25 25 25 25 25 Average Capacity 24 | 7 24 25 25 25 25 25 Most Carried 25 | 2 24 21 25 25 25 24 Average Carried 20 | 1 14 21 24 24 24 23 Final Capacity 25 | 8 25 25 25 25 25 25 Final Carried 25 | 2 21 21 25 25 25 23 Class Distribution -------------------- 58% | Mutant 41% | Scavenger-Mutant Dominant Class ---------------- Mutant | -10/Materials Mutant | -10/Mines Scavenger-Mutant | -9/Materials Scavenger-Mutant | -9/Mines Scavenger-Mutant | -9/Exiles Scavenger-Mutant | -8/Mines Resources | -11 -10 -10 -9 -9 -9 -8 ----------- Run | Yrd Mat Min Mat Min Exi Min Matter Collected 2063 | 282 462 . 1187 132 . . Remotely . | . . . . . . . Salvage Created 2674 | 124 801 . 1615 96 . 38 Parts 171 | 7 49 . 105 9 . 1 Haulers Intercepted 8 | . 2 . 6 . . . Recyclers Shooed 1 | 1 . . . . . . Parts Field Recycled . | . . . . . . . Retrieved Matter . | . . . . . . . Parts Self-Destructed . | . . . . . . . Prevented . | . . . . . . . Kills | -11 -10 -10 -9 -9 -9 -8 ------- Run | Yrd Mat Min Mat Min Exi Min Combat Hostiles Destroyed 40 | . 10 . 26 3 . 1 Guns 37 | . 7 . 26 3 . 1 AOE 3 | . 3 . . . . . Classes Destroyed 12 | 2 7 . 2 . . 1 Worker 8 | . 2 . 4 2 . . Builder 3 | . 2 . 1 . . . Tunneler 2 | 2 . . . . . . Hauler 8 | . 2 . 6 . . . Recycler 4 | 1 2 . 1 . . . Mechanic 2 | . . . 2 . . . Operator 2 | . 1 . 1 . . . Watcher 7 | . 3 . 4 . . . Swarmer 14 | . 1 . 10 3 . . Grunt 19 | . 9 . 10 . . . Duelist 1 | . . . . . . 1 Sentry 6 | . . . 6 . . . Best Kill Streak 6 | 3 3 . 6 3 . 1 Combat Bots Only 4 | . 2 . 4 3 . 1 Max Kills in Single Turn 2 | 1 2 . 1 1 . 1 Gunslinging . | . . . . . . . Exploded 1 | . 1 . . . . . Melee . | . . . . . . . Uniques/NPCs Destroyed . | . . . . . . . Combat | -11 -10 -10 -9 -9 -9 -8 -------- Run | Yrd Mat Min Mat Min Exi Min Hostile Shots Fired 319 | . 63 . 223 11 . 22 Missed 88 | . 17 . 60 5 . 6 Damage Taken 3041 | . 680 . 1979 47 . 335 Core 458 | . 49 . 326 29 . 54 Absorbed by Shields . | . . . . . . . Regen/Repaired (Parts) 204 | . 103 . 101 . . . Core Remaining (%) 90 | 100 . 80 . . . . Volleys Fired 214 | 4 57 3 136 8 . 6 Largest 2 | 2 2 2 2 2 . 2 Hottest 65 | 60 65 46 56 46 . 46 Shots Fired 415 | 8 114 6 258 18 . 11 Gun 406 | 8 106 6 257 18 . 11 Cannon . | . . . . . . . Launcher 9 | . 8 . 1 . . . Special . | . . . . . . . Kinetic 358 | 4 70 6 249 18 . 11 Thermal . | . . . . . . . Explosive 9 | . 8 . 1 . . . Electromagnetic 48 | 4 36 . 8 . . . Robot Hit Streak 14 | 3 11 2 14 4 . 6 Robot Miss Streak 5 | 1 3 1 5 2 . 1 Penetration Max . | . . . . . . . Secondary Targets 6 | . 2 . 3 1 . . Max Gunslinging Chain 1 | . 1 . 1 1 . . Shots Hit Robots 257 | 4 73 4 158 9 . 9 Core Hits 112 | 4 36 . 64 5 . 3 Critical Kills . | . . . . . . . Critical Parts Destroyed 1 | . . . 1 . . . Critical Strikes 1 | . . . 1 . . . Destroy 1 | . . . 1 . . . Melee Attacks . | . . . . . . . Impact . | . . . . . . . Slashing . | . . . . . . . Piercing . | . . . . . . . Sneak Attacks . | . . . . . . . Combat Hostiles . | . . . . . . . Follow-up Attacks . | . . . . . . . Damage Inflicted 4037 | 50 1289 64 2383 119 . 132 Guns 3707 | 50 960 64 2382 119 . 132 Cannons . | . . . . . . . Explosions 329 | . 329 . . . . . Melee . | . . . . . . . Ramming 1 | . . . 1 . . . Kinetic 3196 | 23 598 64 2260 119 . 132 Thermal 48 | . 48 . . . . . Explosive 281 | . 281 . . . . . Electromagnetic 511 | 27 362 . 122 . . . Impact . | . . . . . . . Slashing . | . . . . . . . Piercing . | . . . . . . . Highest Corruption 9 | . . . 9 9 9 9 Average Corruption 4 | . . . 2 9 9 9 Corruption Purged . | . . . . . . . Corruption Blocked . | . . . . . . . Effects 77 | . . . 31 26 19 1 Message Errors 15 | . . . 5 5 5 . Matter Fused 22 | . . . 5 11 6 . Heat Flow Errors 8 | . . . 2 4 2 . Energy Discharges 9 | . . . 7 1 1 . Data Loss (minor) 9 | . . . 4 3 2 . Data Loss (major) 6 | . . . 5 . 1 . Misfires 3 | . . . 1 2 . . Alerts 3 | . . . 1 . 2 . Weapon Failures 2 | . . . 1 . . 1 Overload Shots . | . . . . . . . Overflow Damage 4 | . 4 . . . . . Projectiles . | . . . . . . . Explosions 4 | . 4 . . . . . Melee . | . . . . . . . Knockbacks . | . . . . . . . Impact . | . . . . . . . Kinetic . | . . . . . . . Secondary . | . . . . . . . Self-Inflicted Damage 47 | . 47 . . . . . Shots 1 | . 1 . . . . . Rammed 1 | . . . 1 . . . Targets Rammed 1 | . . . 1 . . . Kicked . | . . . . . . . Crushed . | . . . . . . . Highest Temperature 266 | . 96 6 158 266 131 26 Average Temperature 25 | . 18 4 12 85 69 16 Received Heat Transfer 1191 | . 267 . 807 . . 117 Effects 4 | . . . . 4 . . Energy Bleed 2 | . . . . 2 . . Interference 2 | . . . . 2 . . Siege Activations . | . . . . . . . Robots Corrupted . | . . . . . . . Combat Hostiles . | . . . . . . . Parts Fried . | . . . . . . . Impact Corruptions . | . . . . . . . Robots Melted . | . . . . . . . Combat Hostiles . | . . . . . . . Parts Melted . | . . . . . . . Heat Transferred 50 | . 50 . . . . . Parts Sabotaged . | . . . . . . . Parts Stolen . | . . . . . . . Parts Stripped . | . . . . . . . Power Chain Reactions 1 | . 1 . . . . . Alert | -11 -10 -10 -9 -9 -9 -8 ------- Run | Yrd Mat Min Mat Min Exi Min Peak Influence 493 | 15 163 29 493 251 . 30 Initial 156 | . 9 29 11 156 . . Average 145 | 5 41 29 264 183 . 1 Maximum Alert Level 2 | . . . 2 1 . . Low Security (%) 67 | 100 100 100 36 31 . 100 Level 1 23 | . . . 41 68 . . Level 2 8 | . . . 21 . . . Level 3 . | . . . . . . . Level 4 . | . . . . . . . Level 5 . | . . . . . . . High Security . | . . . . . . . Max Security . | . . . . . . . Squads Dispatched 5 | . 2 . 3 . . . Investigation 2 | . . . 2 . . . Extermination . | . . . . . . . Reinforcement 3 | . 2 . 1 . . . Assault . | . . . . . . . Garrison . | . . . . . . . Intercept . | . . . . . . . Searches Triggered . | . . . . . . . Construction Impeded . | . . . . . . . Haulers Reinforced . | . . . . . . . Active Scanning Responses . | . . . . . . . Cargo Convoy Interrupts . | . . . . . . . Stealth | -11 -10 -10 -9 -9 -9 -8 --------- Run | Yrd Mat Min Mat Min Exi Min Distress Signals 2 | . . . 2 . . . Communications Jammed . | . . . . . . . Distress Signals . | . . . . . . . Times Spotted 63 | . 20 . 38 2 . 3 Peak Tracking Total 4 | . 4 . 4 2 . 3 Tactical Retreats 2 | . 1 . 1 . . . Traps | -11 -10 -10 -9 -9 -9 -8 ------- Run | Yrd Mat Min Mat Min Exi Min Traps Triggered . | . . . . . . . Indirectly . | . . . . . . . Trap Hack Attempts . | . . . . . . . Triggered . | . . . . . . . Disarmed . | . . . . . . . Reprogrammed . | . . . . . . . Reused . | . . . . . . . Traps Extracted . | . . . . . . . Installed . | . . . . . . . Triggered . | . . . . . . . Machines | -11 -10 -10 -9 -9 -9 -8 ---------- Run | Yrd Mat Min Mat Min Exi Min Machines Disabled 2 | . . . 2 . . . Max in Single Turn 1 | . . . 1 . . . Machines Repaired . | . . . . . . . Machines Dismantled . | . . . . . . . Machines Sabotaged . | . . . . . . . Overloaded Fab Kills . | . . . . . . . Hacking | -11 -10 -10 -9 -9 -9 -8 --------- Run | Yrd Mat Min Mat Min Exi Min Machines Accessed 17 | . 4 . 11 . 2 . Terminals 11 | . 3 . 8 . . . Fabricators . | . . . . . . . Repair Stations 2 | . 1 . 1 . . . Recycling Units 1 | . . . 1 . . . Scanalyzers 1 | . . . 1 . . . Garrison Access . | . . . . . . . Total Hacks 70 | . 11 . 35 . 24 . Successful 42 | . 7 . 11 . 24 . Failed 28 | . 4 . 24 . . . Catastrophic 4 | . 1 . 3 . . . Database Lockouts . | . . . . . . . Manual 16 | . 1 . 14 . 1 . Terminals 35 | . 9 . 26 . . . Fabricators . | . . . . . . . Repair Stations 5 | . 2 . 3 . . . Recycling Units 2 | . . . 2 . . . Scanalyzers 4 | . . . 4 . . . Garrison Access . | . . . . . . . Terminal Hacks 36 | . 5 . 7 . 24 . Record 24 | . . . 1 . 23 . Prototype ID Bank 3 | . 1 . 2 . . . Branch Access Points 1 | . . . 1 . . . Alert Level 1 | . . . 1 . . . Unreport Threat 1 | . 1 . . . . . Dispatch Records 1 | . 1 . . . . . Surveillance Status 1 | . 1 . . . . . Recall Investigation 1 | . . . 1 . . . Hauler Manifests 2 | . 1 . 1 . . . Derelict Proto ID Bank 1 | . . . . . 1 . Fabricator Hacks . | . . . . . . . Repair Station Hacks 4 | . 2 . 2 . . . Scan Component 2 | . 1 . 1 . . . Repair 2 | . 1 . 1 . . . Recycling Unit Hacks . | . . . . . . . Scanalyzer 2 | . . . 2 . . . Insert Component 1 | . . . 1 . . . Analyze 1 | . . . 1 . . . Garrison Access Hacks . | . . . . . . . Unauthorized Hacks . | . . . . . . . Terminals . | . . . . . . . Fabricators . | . . . . . . . Repair Stations . | . . . . . . . Recycling Units . | . . . . . . . Scanalyzers . | . . . . . . . Garrison Access . | . . . . . . . Data Cores Recovered . | . . . . . . . Used . | . . . . . . . Hacking Detections 15 | . 4 . 11 . . . Full Trace Events 2 | . . . 2 . . . Feedback Events 1 | . . . 1 . . . Corruption 1 | . . . 1 . . . Feedback Blocked . | . . . . . . . Robot Schematics Acquired . | . . . . . . . Robots Built . | . . . . . . . Authchips . | . . . . . . . Time . | . . . . . . . Total Robot Build Rating . | . . . . . . . Part Schematics Acquired 1 | . . . 1 . . . Parts Built . | . . . . . . . Authchips . | . . . . . . . Time . | . . . . . . . Total Part Build Rating . | . . . . . . . Parts Repaired 2 | . 1 . 1 . . . Time 52 | . 26 . 26 . . . Parts Recycled . | . . . . . . . Recycled Matter . | . . . . . . . Retrieved Matter . | . . . . . . . Retrieved Components . | . . . . . . . Parts Scanalyzed 1 | . . . 1 . . . Part Schematics Acquired 1 | . . . 1 . . . Parts Damaged . | . . . . . . . Bothacking | -11 -10 -10 -9 -9 -9 -8 ------------ Run | Yrd Mat Min Mat Min Exi Min Used RIF Installer . | . . . . . . . Robots Hacked . | . . . . . . . Non-combat . | . . . . . . . Combat . | . . . . . . . Robot Hacks Applied . | . . . . . . . Relay Couplers Released . | . . . . . . . Fabnet Peak Effective % . | . . . . . . . Robots Rewired . | . . . . . . . Allies Hacked . | . . . . . . . Hacks Repelled . | . . . . . . . Allies | -11 -10 -10 -9 -9 -9 -8 -------- Run | Yrd Mat Min Mat Min Exi Min Total Allies . | . . . . . . . Largest Group . | . . . . . . . Highest-Rated Group . | . . . . . . . Highest-Rated Ally . | . . . . . . . Total Orders . | . . . . . . . Ally Attacks . | . . . . . . . Total Damage . | . . . . . . . Kills . | . . . . . . . Allies Corrupted . | . . . . . . . Allies Melted . | . . . . . . . Intel | -11 -10 -10 -9 -9 -9 -8 ------- Run | Yrd Mat Min Mat Min Exi Min Robot Analysis Total . | . . . . . . . Derelict Logs Recovered 1 | . . . . 1 . . Drone Launches . | . . . . . . . Drone Recoveries . | . . . . . . . Exploration | -11 -10 -10 -9 -9 -9 -8 ------------- Run | Yrd Mat Min Mat Min Exi Min Turns Passed 7199 | 90 2924 306 2773 570 520 16 Spaces Moved 2343 | 47 847 83 920 229 217 . Core 16 | 10 . . 6 . . . Treads 2327 | 37 847 83 914 229 217 . Legs . | . . . . . . . Wheels . | . . . . . . . Hover . | . . . . . . . Flight . | . . . . . . . Fastest Speed 50 | 50 160 320 240 240 240 . Average Speed 271 | 141 313 320 249 240 240 . Slowest Speed 1400 | 160 320 320 1400 240 240 . Overloaded Moves . | . . . . . . . Propulsion Burnouts . | . . . . . . . Robots Hopped . | . . . . . . . Cave-ins Triggered . | . . . . . . . Exploration Rate (%) 40 | 4 74 17 67 55 61 3 Regions Visited 6 Branch Regions 4 Pre-discovered Areas 2 | . . 1 . . 1 . Known Exits Taken 1 | . . . 1 . . . Unknown Exits Taken 5 | 1 1 1 . 1 1 . Scrap Searched 1 | . . . . 1 . . Spaces Dug 10 | . 10 . . . . . Terrain Destroyed 66 | . 59 . 7 . . . Melee . | . . . . . . . Projectile . | . . . . . . . AOE 66 | . 59 . 7 . . . Terrain Rammed . | . . . . . . . Walls Destroyed . | . . . . . . . Machines Disabled . | . . . . . . . Actions | -11 -10 -10 -9 -9 -9 -8 --------- Run | Yrd Mat Min Mat Min Exi Min Total 2847 | 59 1005 120 1197 240 218 8 Wait 128 | . 56 35 37 . . . Move 2337 | 46 846 82 919 228 216 . Hop . | . . . . . . . Pick Up 64 | 2 25 . 36 . 1 . Fast Attach 12 | 7 . . 5 . . . Attach 11 | . 2 . 7 . . 2 Detach 2 | . . . . 2 . . Swap 30 | . 12 . 18 . . . Drop 46 | . 7 . 36 2 1 . Fire 214 | 4 57 3 136 8 . 6 Melee . | . . . . . . . Ram 1 | . . . 1 . . . Kick . | . . . . . . . Crush . | . . . . . . . Escape Stasis . | . . . . . . . Rewire 2 | . . . 2 . . . Trap . | . . . . . . . Miscellaneous . | . . . . . . . Route ------- -11/Scrapyard -10/Materials (discovered 3 exits: *Mat x2 / [*Min]) -10/Mines -9/Materials (discovered 5 exits: [*Mat x2] / *Min x2 / Sto) -9/Mines (discovered 2 exits: [*Mat] / *Exi) -9/Exiles -8/Mines History --------- Turn | Location | Event 5 | -11/Scrapyard | Discovered new exit (range 16) 91 | -11/Scrapyard | Entered Materials 314 | -10/Materials | Build established: Mutant 691 | -10/Materials | Discovered new exit (range 8) 1535 | -10/Materials | Discovered new exit (range 12) 1971 | -10/Materials | Repaired Lgt. Treads 2409 | -10/Materials | Discovered new exit (range 15) 3015 | -10/Materials | Entered Mines 3016 | -10/Mines | Learned location of Storage (-9) 3036 | -10/Mines | Met a Derelict bent on vengeance 3305 | -10/Mines | Discovered new exit (range 5) 3321 | -10/Mines | Entered Materials 3321 | -9/Materials | Evolved 2 slots: Propulsion x1, Utility x1 3574 | -9/Materials | Repaired Lgt. Treads 4305 | -9/Materials | Build established: Scavenger-Mutant 4495 | -9/Materials | Identified exit to Mines 4495 | -9/Materials | Identified exit to Storage 4603 | -9/Materials | Discovered new exit (range 16) 5221 | -9/Materials | Discovered new exit (range 16) 5363 | -9/Materials | Core integrity fell below 50% 5432 | -9/Materials | Lost 6 parts (3n1u2w) 5447 | -9/Materials | Core integrity fell below 20% 6094 | -9/Materials | Entered Mines 6143 | -9/Mines | Discovered new exit (range 5) 6215 | -9/Mines | Learned location of 1 exit from Materials 6650 | -9/Mines | Deemed a non-threat by the Exiles lab entrance 6653 | -9/Mines | Discovered new exit (range 5) 6664 | -9/Mines | Entered Exiles 6724 | -9/Exiles | Met 8R-AWN 6765 | -9/Exiles | Met EX-HEX 6830 | -9/Exiles | Met EX-BIN 6859 | -9/Exiles | Aligned with FarCom system 6861 | -9/Exiles | Given EX-Vault access code 6919 | -9/Exiles | Opened EX-Vault 6934 | -9/Exiles | Found Trap Reconfigurator 6988 | -9/Exiles | Warned to stay clear of 0b10 Research branches 7017 | -9/Exiles | Exiles lab attacked by MAIN.C 7088 | -9/Exiles | Learned location of Zion (-7) 7160 | -9/Exiles | Discovered new exit (range 11) 7184 | -9/Exiles | Left Exiles lab with Trap Reconfigurator 7184 | -9/Exiles | Entered Mines 7200 | -8/Mines | Destroyed by G-47 Trooper with Particle Gun Last Messages --------------- More like hollow myth, haha! --DEC >>Record "MSG004902-01*" PINNED - I saw a Programmer snooping around in the Mines recently, it's only a matter of time before they find us. We might need to prioritize getting out of here and finding a better environment less hostile to science. System corrupted: IFF burst signal emitted. System corrupted: Matter fused (-7). EXIT=FOUND System corrupted: Heat flow error (+200). LOCATION=UNKNOWN GOAL=ESCAPE Receiving FarCom transmissions... AM-PHS: "That was close. Too bad in all the rush we got split up from the others." System corrupted: Autogun jammed. Lgt. Treads severed. Critical hit (Burn: +37). L-31 Rogue destroyed. Map ----- +----------------------------------------------------+ | | | | | | | | | | | | | | | | | | | | | | | | | | | | | | | | | | | | | ?????????????????????????????????????????? | | ?????????????????????????????????????????? | | ?????????????????????????????????????????? | | ?????????????????????????????????????????? | | ????????????????######???????????????????? | | ?????????????####g #???????????????????? | | ????????????## #???????????????????? | | ????????????# @% #???????????????????? | | ????????????## !g #???????????????????? | | ?????????????## #???????????????????? | | ??????????????### ##???????????????????? | | ????????????????# ##????????????????????? | | ????????????????# #?????????????????????? | | ????????????????# #?????????????????????? | | ????????????????# #?????????????????????? | | ????????????????# #?????????????????????? | | ????????????????? #?????????????????????? | | ????????????????? ?????????????????????? | | ????????????????? ?????????????????????? | | ????????????????? ?????????????????????? | | ????????????????? ?????????????????????? | | ????????????????? ?????????????????????? | | ????????????????? ?????????????????????? | | ?????????????????????????????????????????? | | ?????????????????????????????????????????? | | ?????????????????????????????????????????? | | ?????????????????????????????????????????? | | ?????????????????????????????????????????? | | ?????????????????????????????????????????? | | ?????????????????????????????????????????? | | ?????????????????????????????????????????? | | ?????????????????????????????????????????? | +----------------------------------------------------+ Best States ------------- Heat Dissipation 28 Energy Generation 12 Energy Capacity 265 Matter Stores 300 Matter Capacity 300 Sight Range 16 Terrain Scan Density 10 Evasion (%) 40 Recoil Reduction 3 Item Schematics ----------------- Hacking Suite | -9/Materials | Scanalyzed Robot Schematics ------------------ None Fabricated ------------ Nothing Alien Tech Used ----------------- None Achievements -------------- None Challenges ------------ None Game ------ Seed NullSignalScythe Manual? 0 Play Time 00:31:10 Cumulative 28.9 hours Start 2025.03.31 @ 13:16:35 End 2025.03.31 @ 13:47:27 Sessions 1 Manual Loads 0 Difficulty Rogue Special Mode None Game No. 77 Rogue 77 Adventurer 0 Explorer 0 Win Type - Total 0 Types 0/0/0/0/0/0/0/0/0 Lore% 16 Gallery% 23 Achievement% 25 Wizard Run 0 Options --------- Layout 1 ASCII 0 Keyboard 0 Movement Mouse Keybinds 0 Fullscreen 1 Font 36/Smallcaps Map View 50x40 Zoom Use 0% Tactical HUD 0 Map Filters NONE Filters NONE Steam 1 RUN: 8aa4b83b-2818-445a-9338-facd4e106cc8